{"text_format":"1","workbook":"xlsx","n_sheets":2,"sheets":["что есть","как должно быть"],"not_rendered":{"charts":0,"images":0,"macros":0,"external_links":0,"defined_names":2,"comments":1,"pivot_tables":0},"unopened":[],"bounds":{"document_bytes":16777216,"sheet_cells":100000,"rows_first":2000,"rows_last":500,"rows_between":2000,"halvings":0,"cell_chars":16384,"cell_head_chars":4096},"cells_cut":0,"cells_raw":0,"read":"whole","date_system":"1900"}

{"sheet":"что есть","index":0,"n_rows":29,"n_cols":6,"rows_kept":29,"cut":false,"hidden":false,"merged":[]}
[null,null,"АвтоЗаголовок","Здесь будет первый столбец","длина\nmax 35","Здесь будет второй столбец"]
[1,null,"В печальной праздности я лиру забывал,",{"$f":"TRIM(MID(C2,1,LOOKUP(36,SEARCH(\" \",IF(MID(C2,36,1)=\"!\",REPLACE(C2,36,1,)&\" \",C2&\" \"),ROW($1:$36)))-1))","v":"В печальной праздности я лиру"},{"$f":"IF(D2=\"\",\"\",LEN(D2))","v":29},{"$f":"TRIM(SUBSTITUTE(IF(MID(C2,36,1)=\"!\",REPLACE(C2,36,1,),C2),D2,))","v":"забывал,"}]
[2,null,"Воображение в мечтах не разгоралось!",{"$f":"TRIM(MID(C3,1,LOOKUP(36,SEARCH(\" \",IF(MID(C3,36,1)=\"!\",REPLACE(C3,36,1,)&\" \",C3&\" \"),ROW($1:$36)))-1))","v":"Воображение в мечтах не разгоралось"},{"$f":"IF(D3=\"\",\"\",LEN(D3))","v":35},{"$f":"TRIM(SUBSTITUTE(IF(MID(C3,36,1)=\"!\",REPLACE(C3,36,1,),C3),D3,))","v":""}]
[3,null,"С дарами юности мой гений отлетал,",{"$f":"TRIM(MID(C4,1,LOOKUP(36,SEARCH(\" \",IF(MID(C4,36,1)=\"!\",REPLACE(C4,36,1,)&\" \",C4&\" \"),ROW($1:$36)))-1))","v":"С дарами юности мой гений отлетал,"},34,""]
[4,null,"И сердце медленно хладело, закрывалось.","И сердце медленно хладело,",26,"закрывалось."]
[5,null,"Вас вновь я призывал, о дни моей весны,","Вас вновь я призывал, о дни моей",32,"весны,"]
[6,null,"Вы, пролетевшие под сенью тишины,","Вы, пролетевшие под сенью тишины,",33,""]
[7,null,"Дни дружества, любви, надежд и грусти нежной,","Дни дружества, любви, надежд и",30,"грусти нежной,"]
[8,null,"Когда, поэзии поклонник безмятежный!","Когда, поэзии поклонник безмятежный",35,""]
[9,null,"На лире счастливой я тихо воспевал","На лире счастливой я тихо воспевал",34,""]
[10,null,"Волнение любви, уныние разлуки —","Волнение любви, уныние разлуки —",32,""]
[11,null,"И гул дубрав горам передавал","И гул дубрав горам передавал",28,""]
[12,null,"Мои задумчивые звуки...","Мои задумчивые звуки...",23,""]
[13,null,"Напрасно! Я влачил постыдной лени груз,","Напрасно! Я влачил постыдной лени",33,"груз,"]
[14,null,"В дремоту хладную невольно погружался,","В дремоту хладную невольно",26,"погружался,"]
[15,null,"Бежал от радостей, бежал от милых муз","Бежал от радостей, бежал от милых",33,"муз"]
[16,null,"И — слезы на глазах — со славою прощался!","И — слезы на глазах — со славою",31,"прощался!"]
[17,null,"Но вдруг, как молнии стрела,","Но вдруг, как молнии стрела,",28,""]
[18,null,"Зажглась в увядшем сердце младость,","Зажглась в увядшем сердце младость,",35,""]
[19,null,"Душа проснулась, ожила,","Душа проснулась, ожила,",23,""]
[20,null,"Узнала вновь любви надежду, скорбь и радость.","Узнала вновь любви надежду, скорбь",34,"и радость."]
[21,null,"Все снова расцвело! Я жизнью трепетал;","Все снова расцвело! Я жизнью",28,"трепетал;"]
[22,null,"Природы вновь восторженный свидетель,","Природы вновь восторженный",26,"свидетель,"]
[23,null,"Живее чувствовал, свободнее дышал,","Живее чувствовал, свободнее дышал,",34,""]
[24,null,"Сильней пленяла добродетель...","Сильней пленяла добродетель...",30,""]
[25,null,"Хвала любви, хвала богам!","Хвала любви, хвала богам!",25,""]
[26,null,"Вновь лиры сладостной раздался голос юный,","Вновь лиры сладостной раздался",30,"голос юный,"]
[27,null,"И с звонким трепетом воскреснувшие струны","И с звонким трепетом воскреснувшие",34,"струны"]
[28,null,"Несу к твоим ногам!..","Несу к твоим ногам!..",21,""]

{"sheet":"как должно быть","index":1,"n_rows":29,"n_cols":6,"rows_kept":29,"cut":false,"hidden":false,"merged":[]}
[null,null,"АвтоЗаголовок","Здесь будет первый столбец \nБЕЗ ПРОБЕЛОВ НА КОНЦЕ","длина\nmax 35","Здесь будет второй столбец\nБЕЗ ПРОБЕЛОВ В НАЧАЛЕ"]
[1,null,"В печальной праздности я лиру забывал,",{"$f":"TRIM(SUBSTITUTE(C2,F2,))","v":"В печальной праздности я лиру"},{"$f":"IF(D2=\"\",\"\",LEN(D2))","v":29},"забывал,"]
[2,null,"Воображение в мечтах не разгоралось!","Воображение в мечтах не разгоралось",35]
[3,null,"С дарами юности мой гений отлетал,","С дарами юности мой гений отлетал,",34]
[4,null,"И сердце медленно хладело, закрывалось.",{"$f":"TRIM(SUBSTITUTE(C5,F5,))","v":"И сердце медленно хладело,"},26,"закрывалось."]
[5,null,"Вас вновь я призывал, о дни моей весны,",{"$f":"TRIM(SUBSTITUTE(C6,F6,))","v":"Вас вновь я призывал, о дни моей"},32,"весны,"]
[6,null,"Вы, пролетевшие под сенью тишины,","Вы, пролетевшие под сенью тишины,",33]
[7,null,"Дни дружества, любви, надежд и грусти нежной,",{"$f":"TRIM(SUBSTITUTE(C8,F8,))","v":"Дни дружества, любви, надежд и"},30,"грусти нежной,"]
[8,null,"Когда, поэзии поклонник безмятежный!","Когда, поэзии поклонник безмятежный",35]
[9,null,"На лире счастливой я тихо воспевал","На лире счастливой я тихо воспевал",34]
[10,null,"Волнение любви, уныние разлуки —","Волнение любви, уныние разлуки —",32]
[11,null,"И гул дубрав горам передавал","И гул дубрав горам передавал",28]
[12,null,"Мои задумчивые звуки...","Мои задумчивые звуки...",23]
[13,null,"Напрасно! Я влачил постыдной лени груз,",{"$f":"TRIM(SUBSTITUTE(C14,F14,))","v":"Напрасно! Я влачил постыдной лени"},33,"груз,"]
[14,null,"В дремоту хладную невольно погружался,",{"$f":"TRIM(SUBSTITUTE(C15,F15,))","v":"В дремоту хладную невольно"},26,"погружался,"]
[15,null,"Бежал от радостей, бежал от милых муз",{"$f":"TRIM(SUBSTITUTE(C16,F16,))","v":"Бежал от радостей, бежал от милых"},33,"муз"]
[16,null,"И — слезы на глазах — со славою прощался!",{"$f":"TRIM(SUBSTITUTE(C17,F17,))","v":"И — слезы на глазах — со славою"},31,"прощался!"]
[17,null,"Но вдруг, как молнии стрела,","Но вдруг, как молнии стрела,",28]
[18,null,"Зажглась в увядшем сердце младость,","Зажглась в увядшем сердце младость,",35]
[19,null,"Душа проснулась, ожила,","Душа проснулась, ожила,",23]
[20,null,"Узнала вновь любви надежду, скорбь и радость.",{"$f":"TRIM(SUBSTITUTE(C21,F21,))","v":"Узнала вновь любви надежду, скорбь"},34,"и радость."]
[21,null,"Все снова расцвело! Я жизнью трепетал;",{"$f":"TRIM(SUBSTITUTE(C22,F22,))","v":"Все снова расцвело! Я жизнью"},28,"трепетал;"]
[22,null,"Природы вновь восторженный свидетель,",{"$f":"TRIM(SUBSTITUTE(C23,F23,))","v":"Природы вновь восторженный"},26,"свидетель,"]
[23,null,"Живее чувствовал, свободнее дышал,","Живее чувствовал, свободнее дышал,",34]
[24,null,"Сильней пленяла добродетель...","Сильней пленяла добродетель...",30]
[25,null,"Хвала любви, хвала богам!","Хвала любви, хвала богам!",25]
[26,null,"Вновь лиры сладостной раздался голос юный,",{"$f":"TRIM(SUBSTITUTE(C27,F27,))","v":"Вновь лиры сладостной раздался"},30,"голос юный,"]
[27,null,"И с звонким трепетом воскреснувшие струны",{"$f":"TRIM(SUBSTITUTE(C28,F28,))","v":"И с звонким трепетом воскреснувшие"},34,"струны"]
[28,null,"Несу к твоим ногам!..","Несу к твоим ногам!..",21]